[Event "Titled Tuesday Blitz March 15 Early 2022"]
[White "volunteers1998"]
[Black "Devaev, Alexander"]
[BlackFideId "4169395"]
[WhiteElo "2266"]
[BlackElo "2185"]
[Result "1/2-1/2"]
[Round "08"]
[TimeControl "180+1"]
[Date "2022.03.15"]
[WhiteClock "0:00:04"]
[BlackClock "0:00:11"]

1. e4 {[%clk 0:03:00]}  c6 {[%clk 0:02:49]} 2. d4 {[%clk 0:02:58]}  d5 {[%clk 0:02:44]} 3. e5 {[%clk 0:02:58]}  Bf5 {[%clk 0:02:28]} 4. h4 {[%clk 0:02:57]}  Qb6 {[%clk 0:02:16]} 5. g4 {[%clk 0:02:52]}  Bd7 {[%clk 0:02:16]} 6. Nc3 {[%clk 0:02:50]}  e6 {[%clk 0:02:17]} 7. f4 {[%clk 0:02:40]}  c5 {[%clk 0:02:16]} 8. Nf3 {[%clk 0:02:35]}  Nc6 {[%clk 0:02:12]} 9. Be3 {[%clk 0:02:28]}  cxd4 {[%clk 0:02:04]} 10. Nxd4 {[%clk 0:02:26]}  Nxd4 {[%clk 0:02:02]} 11. Qxd4 {[%clk 0:02:17]}  Qxd4 {[%clk 0:01:37]} 12. Bxd4 {[%clk 0:02:16]}  h5 {[%clk 0:01:38]} 13. g5 {[%clk 0:02:09]}  Ne7 {[%clk 0:01:38]} 14. Nb5 {[%clk 0:02:05]}  Bxb5 {[%clk 0:01:37]} 15. Bxb5+ {[%clk 0:02:03]}  Nc6 {[%clk 0:01:38]} 16. O-O-O {[%clk 0:01:54]}  Rc8 {[%clk 0:01:38]} 17. Kb1 {[%clk 0:01:41]}  a6 {[%clk 0:01:37]} 18. Bxc6+ {[%clk 0:01:39]}  Rxc6 {[%clk 0:01:37]} 19. Rh3 {[%clk 0:01:36]}  Be7 {[%clk 0:01:31]} 20. Rc3 {[%clk 0:01:31]}  Kd7 {[%clk 0:01:26]} 21. Rxc6 {[%clk 0:01:28]}  bxc6 {[%clk 0:01:25]} 22. Rd3 {[%clk 0:01:25]}  c5 {[%clk 0:01:24]} 23. Be3 {[%clk 0:01:23]}  c4 {[%clk 0:01:21]} 24. Rd2 {[%clk 0:01:21]}  Rb8 {[%clk 0:01:19]} 25. c3 {[%clk 0:01:18]}  Kc6 {[%clk 0:01:19]} 26. Kc2 {[%clk 0:01:16]}  a5 {[%clk 0:01:19]} 27. b3 {[%clk 0:01:11]}  cxb3+ {[%clk 0:01:16]} 28. axb3 {[%clk 0:01:12]}  f6 {[%clk 0:00:53]} 29. exf6 {[%clk 0:01:09]}  gxf6 {[%clk 0:00:54]} 30. Rd1 {[%clk 0:01:01]}  e5 {[%clk 0:00:45]} 31. fxe5 {[%clk 0:00:55]}  fxe5 {[%clk 0:00:45]} 32. Ra1 {[%clk 0:00:54]}  Kb5 {[%clk 0:00:44]} 33. c4+ {[%clk 0:00:48]}  dxc4 {[%clk 0:00:43]} 34. bxc4+ {[%clk 0:00:49]}  Ka6 {[%clk 0:00:34]} 35. Bd2 {[%clk 0:00:47]}  Bb4 {[%clk 0:00:33]} 36. Bxb4 {[%clk 0:00:42]}  Rxb4 {[%clk 0:00:33]} 37. Kc3 {[%clk 0:00:43]}  Rb7 {[%clk 0:00:22]} 38. Re1 {[%clk 0:00:38]}  Re7 {[%clk 0:00:22]} 39. Kd3 {[%clk 0:00:32]}  Kb6 {[%clk 0:00:22]} 40. Ke4 {[%clk 0:00:31]}  Kc5 {[%clk 0:00:23]} 41. Ra1 {[%clk 0:00:28]}  Kb4 {[%clk 0:00:19]} 42. c5 {[%clk 0:00:25]}  a4 {[%clk 0:00:17]} 43. c6 {[%clk 0:00:21]}  a3 {[%clk 0:00:17]} 44. c7 {[%clk 0:00:19]}  Rxc7 {[%clk 0:00:17]} 45. Kxe5 {[%clk 0:00:17]}  Rc4 {[%clk 0:00:18]} 46. Rh1 {[%clk 0:00:13]}  a2 {[%clk 0:00:17]} 47. g6 {[%clk 0:00:11]}  Rg4 {[%clk 0:00:15]} 48. Kf6 {[%clk 0:00:09]}  Kb3 {[%clk 0:00:16]} 49. g7 {[%clk 0:00:07]}  Kb2 {[%clk 0:00:12]} 50. Kf7 {[%clk 0:00:04]}  Rf4+ {[%clk 0:00:12]} 51. Ke7 {[%clk 0:00:04]}  Re4+ {[%clk 0:00:12]} 52. Kf7 {[%clk 0:00:04]}  Rf4+ {[%clk 0:00:13]} 53. Ke7 {[%clk 0:00:04]}  Rg4 {[%clk 0:00:13]} 54. Kf7 {[%clk 0:00:04]}  Rf4+ {[%clk 0:00:11]} 1/2-1/2


[Site "https://www.chess.com"]

[Event "Titled Tuesday Blitz March 15 Early 2022"]
[White "Alinasab, Mobina"]
[Black "Kanyamarala, Tarun"]
[WhiteFideId "12528897"]
[BlackFideId "45004714"]
[WhiteElo "2454"]
[BlackElo "2528"]
[Result "1-0"]
[Round "09"]
[TimeControl "180+1"]
[Date "2022.03.15"]
[WhiteClock "0:00:07"]
[BlackClock "0:00:11"]

1. e4 {[%clk 0:02:48]}  c5 {[%clk 0:03:00]} 2. Nf3 {[%clk 0:02:48]}  Nc6 {[%clk 0:03:01]} 3. d4 {[%clk 0:02:48]}  cxd4 {[%clk 0:03:02]} 4. Nxd4 {[%clk 0:02:49]}  Nf6 {[%clk 0:03:02]} 5. Nc3 {[%clk 0:02:49]}  e5 {[%clk 0:03:02]} 6. Ndb5 {[%clk 0:02:49]}  d6 {[%clk 0:03:02]} 7. Bg5 {[%clk 0:02:49]}  a6 {[%clk 0:03:03]} 8. Na3 {[%clk 0:02:50]}  b5 {[%clk 0:03:03]} 9. Bxf6 {[%clk 0:02:50]}  gxf6 {[%clk 0:03:03]} 10. Nd5 {[%clk 0:02:51]}  Bg7 {[%clk 0:03:04]} 11. Bd3 {[%clk 0:02:51]}  O-O {[%clk 0:03:03]} 12. Qh5 {[%clk 0:02:45]}  Ne7 {[%clk 0:03:00]} 13. c4 {[%clk 0:02:40]}  f5 {[%clk 0:02:52]} 14. Nxe7+ {[%clk 0:02:35]}  Qxe7 {[%clk 0:02:50]} 15. O-O {[%clk 0:02:36]}  Rb8 {[%clk 0:02:35]} 16. exf5 {[%clk 0:02:35]}  e4 {[%clk 0:02:36]} 17. Rae1 {[%clk 0:02:34]}  Bb7 {[%clk 0:02:36]} 18. cxb5 {[%clk 0:02:30]}  d5 {[%clk 0:02:35]} 19. bxa6 {[%clk 0:02:30]}  Ba8 {[%clk 0:02:35]} 20. Nb5 {[%clk 0:02:09]}  Qf6 {[%clk 0:02:24]} 21. Be2 {[%clk 0:02:06]}  Qxb2 {[%clk 0:02:18]} 22. Rb1 {[%clk 0:02:02]}  Qe5 {[%clk 0:02:16]} 23. Rfd1 {[%clk 0:02:01]}  d4 {[%clk 0:02:12]} 24. a7 {[%clk 0:01:27]}  Rb6 {[%clk 0:02:10]} 25. f6 {[%clk 0:01:06]}  Qxf6 {[%clk 0:01:46]} 26. Nc7 {[%clk 0:00:59]}  d3 {[%clk 0:01:34]} 27. Bg4 {[%clk 0:00:54]}  e3 {[%clk 0:01:25]} 28. fxe3 {[%clk 0:00:45]}  Rxb1 {[%clk 0:00:56]} 29. Rxb1 {[%clk 0:00:46]}  Qe7 {[%clk 0:00:51]} 30. Nxa8 {[%clk 0:00:28]}  Qxe3+ {[%clk 0:00:51]} 31. Kh1 {[%clk 0:00:28]}  d2 {[%clk 0:00:51]} 32. Be2 {[%clk 0:00:18]}  Qxa7 {[%clk 0:00:39]} 33. Nb6 {[%clk 0:00:15]}  Qxa2 {[%clk 0:00:38]} 34. Rd1 {[%clk 0:00:15]}  Rb8 {[%clk 0:00:36]} 35. Nd5 {[%clk 0:00:14]}  Rb1 {[%clk 0:00:35]} 36. h3 {[%clk 0:00:13]}  Qc2 {[%clk 0:00:18]} 37. Rxb1 {[%clk 0:00:12]}  Qxb1+ {[%clk 0:00:18]} 38. Bd1 {[%clk 0:00:12]}  Qb2 {[%clk 0:00:18]} 39. Ne7+ {[%clk 0:00:12]}  Kf8 {[%clk 0:00:17]} 40. Nf5 {[%clk 0:00:12]}  Be5 {[%clk 0:00:17]} 41. Qh6+ {[%clk 0:00:12]}  Ke8 {[%clk 0:00:17]} 42. Qe3 {[%clk 0:00:11]}  f6 {[%clk 0:00:16]} 43. Qb3 {[%clk 0:00:09]}  Qc1 {[%clk 0:00:16]} 44. Ne3 {[%clk 0:00:09]}  Qc5 {[%clk 0:00:15]} 45. Ng4 {[%clk 0:00:08]}  Bd4 {[%clk 0:00:13]} 46. Qd3 {[%clk 0:00:06]}  Bc3 {[%clk 0:00:11]} 47. Qe4+ {[%clk 0:00:06]}  Kd8 {[%clk 0:00:10]} 48. Qd3+ {[%clk 0:00:06]}  Kc7 {[%clk 0:00:10]} 49. Ne3 {[%clk 0:00:07]}  Kb6 {[%clk 0:00:09]} 50. Qxc3 {[%clk 0:00:07]}  Qxc3 {[%clk 0:00:08]} 51. Nd5+ {[%clk 0:00:07]}  Kc5 {[%clk 0:00:08]} 52. Nxc3 {[%clk 0:00:08]}  Kd4 {[%clk 0:00:09]} 53. Ne2+ {[%clk 0:00:06]}  Ke3 {[%clk 0:00:10]} 54. Ng3 {[%clk 0:00:06]}  f5 {[%clk 0:00:11]} 55. Kg1 {[%clk 0:00:06]}  f4 {[%clk 0:00:11]} 56. Nf1+ {[%clk 0:00:06]}  Kd3 {[%clk 0:00:11]} 57. Kf2 {[%clk 0:00:07]} 1-0


[Site "https://www.chess.com"]

[Event "Titled Tuesday Blitz March 15 Early 2022"]
[White "Baches Garcia, Guillermo"]
[Black "Iskusnyh, Sergei"]
[WhiteFideId "2209764"]
[BlackFideId "4120027"]
[WhiteElo "2432"]
[BlackElo "2492"]
[Result "1-0"]
[Round "09"]
[TimeControl "180+1"]
[Date "2022.03.15"]
[WhiteClock "0:00:34"]
[BlackClock "0:00:02"]

1. e4 {[%clk 0:03:00]}  c5 {[%clk 0:02:38]} 2. Nf3 {[%clk 0:03:00]}  e6 {[%clk 0:02:37]} 3. c4 {[%clk 0:03:00]}  a6 {[%clk 0:02:34]} 4. Nc3 {[%clk 0:02:58]}  d6 {[%clk 0:02:23]} 5. Be2 {[%clk 0:02:55]}  Nc6 {[%clk 0:02:20]} 6. O-O {[%clk 0:02:55]}  Nf6 {[%clk 0:02:20]} 7. d4 {[%clk 0:02:51]}  cxd4 {[%clk 0:02:18]} 8. Nxd4 {[%clk 0:02:52]}  Be7 {[%clk 0:02:17]} 9. Be3 {[%clk 0:02:51]}  Qc7 {[%clk 0:02:16]} 10. Rc1 {[%clk 0:02:47]}  O-O {[%clk 0:02:14]} 11. Nd5 {[%clk 0:02:36]}  Qd8 {[%clk 0:01:53]} 12. Nxc6 {[%clk 0:01:45]}  bxc6 {[%clk 0:01:23]} 13. Bb6 {[%clk 0:01:44]}  Qd7 {[%clk 0:01:09]} 14. Nxe7+ {[%clk 0:01:44]}  Qxe7 {[%clk 0:01:10]} 15. c5 {[%clk 0:01:42]}  d5 {[%clk 0:01:09]} 16. exd5 {[%clk 0:01:31]}  exd5 {[%clk 0:00:46]} 17. Re1 {[%clk 0:01:31]}  Be6 {[%clk 0:00:42]} 18. Qd4 {[%clk 0:01:28]}  Rfe8 {[%clk 0:00:35]} 19. Bd3 {[%clk 0:01:21]}  Qd7 {[%clk 0:00:28]} 20. h3 {[%clk 0:01:18]}  Bf5 {[%clk 0:00:17]} 21. Bf1 {[%clk 0:01:17]}  Bg6 {[%clk 0:00:14]} 22. b4 {[%clk 0:01:05]}  Rxe1 {[%clk 0:00:10]} 23. Rxe1 {[%clk 0:01:04]}  h6 {[%clk 0:00:10]} 24. a4 {[%clk 0:01:03]}  Qb7 {[%clk 0:00:09]} 25. b5 {[%clk 0:01:02]}  axb5 {[%clk 0:00:09]} 26. axb5 {[%clk 0:01:03]}  Nd7 {[%clk 0:00:09]} 27. Re7 {[%clk 0:00:52]}  Qc8 {[%clk 0:00:08]} 28. h4 {[%clk 0:00:40]}  cxb5 {[%clk 0:00:04]} 29. Bxb5 {[%clk 0:00:38]}  Nxb6 {[%clk 0:00:04]} 30. cxb6 {[%clk 0:00:37]}  Rb8 {[%clk 0:00:03]} 31. Re8+ {[%clk 0:00:34]}  Qxe8 {[%clk 0:00:02]} 32. Bxe8 {[%clk 0:00:34]}  Rxe8 {[%clk 0:00:03]} 33. b7 {[%clk 0:00:33]}  Rb8 {[%clk 0:00:02]} 34. Qa7 {[%clk 0:00:34]} 1-0


[Site "https://www.chess.com"]

[Event "Titled Tuesday Blitz March 15 Early 2022"]
[White "Bintang, Rasyid A. Hidayat"]
[Black "Vokarev, Sergey"]
[WhiteFideId "7105355"]
[BlackFideId "4119711"]
[WhiteElo "2362"]
[BlackElo "2398"]
[Result "0-1"]
[Round "09"]
[TimeControl "180+1"]
[Date "2022.03.15"]
[WhiteClock "0:01:32"]
[BlackClock "0:01:42"]

1. d4 {[%clk 0:03:00]}  d5 {[%clk 0:02:56]} 2. Bf4 {[%clk 0:03:00]}  c5 {[%clk 0:02:54]} 3. e3 {[%clk 0:03:00]}  Nc6 {[%clk 0:02:54]} 4. Nf3 {[%clk 0:03:00]}  Nf6 {[%clk 0:02:52]} 5. Nbd2 {[%clk 0:02:58]}  cxd4 {[%clk 0:02:40]} 6. exd4 {[%clk 0:02:57]}  Bg4 {[%clk 0:02:39]} 7. Bb5 {[%clk 0:02:51]}  Rc8 {[%clk 0:02:37]} 8. c4 {[%clk 0:02:50]}  e6 {[%clk 0:02:34]} 9. Qa4 {[%clk 0:02:47]}  Bxf3 {[%clk 0:02:33]} 10. Nxf3 {[%clk 0:02:46]}  dxc4 {[%clk 0:02:26]} 11. O-O {[%clk 0:02:37]}  Bd6 {[%clk 0:02:20]} 12. Ne5 {[%clk 0:02:24]}  O-O {[%clk 0:02:13]} 13. Bxc6 {[%clk 0:02:19]}  bxc6 {[%clk 0:02:12]} 14. Nxc6 {[%clk 0:02:19]}  Rxc6 {[%clk 0:02:10]} 15. Qxc6 {[%clk 0:02:17]}  Bxf4 {[%clk 0:02:09]} 16. Qxc4 {[%clk 0:02:17]}  Nd5 {[%clk 0:02:06]} 17. g3 {[%clk 0:02:16]}  Bc7 {[%clk 0:02:05]} 18. Qa6 {[%clk 0:02:10]}  Bb6 {[%clk 0:02:04]} 19. Rfd1 {[%clk 0:02:08]}  Qf6 {[%clk 0:02:04]} 20. Qd3 {[%clk 0:02:05]}  h5 {[%clk 0:02:04]} 21. a4 {[%clk 0:02:05]}  a5 {[%clk 0:02:00]} 22. Qe4 {[%clk 0:01:56]}  Rd8 {[%clk 0:01:58]} 23. Rac1 {[%clk 0:01:51]}  Nb4 {[%clk 0:01:54]} 24. Rc4 {[%clk 0:01:49]}  g6 {[%clk 0:01:51]} 25. Kg2 {[%clk 0:01:49]}  Kg7 {[%clk 0:01:50]} 26. Qb7 {[%clk 0:01:46]}  Bxd4 {[%clk 0:01:46]} 27. Qb5 {[%clk 0:01:33]}  Qxf2+ {[%clk 0:01:43]} 28. Kh1 {[%clk 0:01:32]}  Qf3# {[%clk 0:01:42]} 0-1


[Site "https://www.chess.com"]

[Event "Titled Tuesday Blitz March 15 Early 2022"]
[White "Brunner, Nicolas"]
[Black "De Souza, Cristiano Gomes"]
[WhiteFideId "620246"]
[BlackFideId "2151758"]
[WhiteElo "2372"]
[BlackElo "2068"]
[Result "1-0"]
[Round "09"]
[TimeControl "180+1"]
[Date "2022.03.15"]
[WhiteClock "0:00:15"]
[BlackClock "0:01:16"]

1. d4 {[%clk 0:02:59]}  Nf6 {[%clk 0:02:59]} 2. c4 {[%clk 0:02:58]}  g6 {[%clk 0:02:59]} 3. Nf3 {[%clk 0:02:58]}  Bg7 {[%clk 0:02:59]} 4. Nc3 {[%clk 0:02:58]}  d6 {[%clk 0:03:00]} 5. e4 {[%clk 0:02:57]}  O-O {[%clk 0:03:01]} 6. Be2 {[%clk 0:02:57]}  e5 {[%clk 0:03:00]} 7. O-O {[%clk 0:02:56]}  Nc6 {[%clk 0:02:59]} 8. d5 {[%clk 0:02:55]}  Ne7 {[%clk 0:02:59]} 9. b4 {[%clk 0:02:56]}  Ne8 {[%clk 0:02:56]} 10. c5 {[%clk 0:02:54]}  f5 {[%clk 0:02:56]} 11. Nd2 {[%clk 0:02:52]}  h5 {[%clk 0:02:53]} 12. a4 {[%clk 0:02:49]}  Nf6 {[%clk 0:02:50]} 13. Ba3 {[%clk 0:02:38]}  Kh7 {[%clk 0:02:48]} 14. b5 {[%clk 0:02:37]}  Bh6 {[%clk 0:02:47]} 15. f3 {[%clk 0:02:36]}  Be3+ {[%clk 0:02:42]} 16. Kh1 {[%clk 0:02:36]}  dxc5 {[%clk 0:02:41]} 17. Qc2 {[%clk 0:02:25]}  b6 {[%clk 0:02:37]} 18. Rae1 {[%clk 0:02:17]}  Bd4 {[%clk 0:02:35]} 19. Bd3 {[%clk 0:02:07]}  f4 {[%clk 0:02:34]} 20. Ne2 {[%clk 0:02:01]}  Be3 {[%clk 0:02:33]} 21. Nc4 {[%clk 0:02:00]}  Nd7 {[%clk 0:02:19]} 22. Nxe3 {[%clk 0:01:59]}  fxe3 {[%clk 0:02:19]} 23. Qc1 {[%clk 0:01:59]}  g5 {[%clk 0:02:16]} 24. Qxe3 {[%clk 0:01:59]}  Rg8 {[%clk 0:02:15]} 25. Ng3 {[%clk 0:01:55]}  Nf6 {[%clk 0:02:13]} 26. Bb2 {[%clk 0:01:52]}  Qd6 {[%clk 0:02:11]} 27. Nf5 {[%clk 0:01:45]}  Nxf5 {[%clk 0:02:07]} 28. exf5 {[%clk 0:01:46]}  Nxd5 {[%clk 0:01:59]} 29. Qxe5 {[%clk 0:01:45]}  Qxe5 {[%clk 0:01:58]} 30. Rxe5 {[%clk 0:01:45]}  Rd8 {[%clk 0:01:45]} 31. Be4 {[%clk 0:01:41]}  Bb7 {[%clk 0:01:44]} 32. h4 {[%clk 0:01:18]}  gxh4 {[%clk 0:01:41]} 33. Rd1 {[%clk 0:01:17]}  Ne3 {[%clk 0:01:39]} 34. Rxd8 {[%clk 0:01:15]}  Rxd8 {[%clk 0:01:39]} 35. Re7+ {[%clk 0:01:08]}  Kh6 {[%clk 0:01:37]} 36. Bxb7 {[%clk 0:01:01]}  Rd1+ {[%clk 0:01:36]} 37. Kh2 {[%clk 0:01:01]}  Nf1+ {[%clk 0:01:29]} 38. Kh3 {[%clk 0:00:39]}  Ng3 {[%clk 0:01:27]} 39. Re6+ {[%clk 0:00:32]}  Kg5 {[%clk 0:01:21]} 40. Rg6+ {[%clk 0:00:19]}  Kxf5 {[%clk 0:01:20]} 41. Rf6+ {[%clk 0:00:15]}  Kg5 {[%clk 0:01:16]} 42. f4# {[%clk 0:00:15]} 1-0


[Site "https://www.chess.com"]

[Event "Titled Tuesday Blitz March 15 Early 2022"]
[White "Buscar, Michael"]
[Black "Kett, Tim"]
[WhiteFideId "2603616"]
[BlackFideId "1801210"]
[WhiteElo "2010"]
[BlackElo "2098"]
[Result "1-0"]
[Round "09"]
[TimeControl "180+1"]
[Date "2022.03.15"]
[WhiteClock "0:00:05"]
[BlackClock "0:00:02"]

1. c4 {[%clk 0:02:34]}  e5 {[%clk 0:02:57]} 2. Nf3 {[%clk 0:02:32]}  e4 {[%clk 0:02:52]} 3. Nd4 {[%clk 0:02:32]}  Nf6 {[%clk 0:02:52]} 4. Nc3 {[%clk 0:02:31]}  Bb4 {[%clk 0:02:51]} 5. g3 {[%clk 0:02:30]}  Bxc3 {[%clk 0:02:50]} 6. dxc3 {[%clk 0:02:28]}  O-O {[%clk 0:02:49]} 7. Bg2 {[%clk 0:02:28]}  Re8 {[%clk 0:02:49]} 8. O-O {[%clk 0:02:28]}  h6 {[%clk 0:02:47]} 9. c5 {[%clk 0:02:23]}  Qe7 {[%clk 0:02:46]} 10. Nb3 {[%clk 0:02:22]}  b6 {[%clk 0:02:39]} 11. Be3 {[%clk 0:02:16]}  bxc5 {[%clk 0:02:36]} 12. Bxc5 {[%clk 0:02:13]}  d6 {[%clk 0:02:36]} 13. Bd4 {[%clk 0:02:06]}  Bb7 {[%clk 0:02:36]} 14. c4 {[%clk 0:02:03]}  Nbd7 {[%clk 0:02:35]} 15. Qc2 {[%clk 0:02:00]}  Rab8 {[%clk 0:02:17]} 16. Bxa7 {[%clk 0:01:57]}  Ra8 {[%clk 0:02:15]} 17. Bd4 {[%clk 0:01:57]}  Ne5 {[%clk 0:02:04]} 18. c5 {[%clk 0:01:41]}  Rab8 {[%clk 0:01:48]} 19. Na5 {[%clk 0:01:35]}  Ba8 {[%clk 0:01:46]} 20. Rfc1 {[%clk 0:01:21]}  Neg4 {[%clk 0:01:44]} 21. e3 {[%clk 0:01:10]}  Bd5 {[%clk 0:01:26]} 22. cxd6 {[%clk 0:01:05]}  cxd6 {[%clk 0:01:25]} 23. Nc6 {[%clk 0:01:05]}  Bxc6 {[%clk 0:01:23]} 24. Qxc6 {[%clk 0:01:06]}  Qe6 {[%clk 0:01:18]} 25. Qc4 {[%clk 0:00:55]}  Qf5 {[%clk 0:01:16]} 26. Qe2 {[%clk 0:00:54]}  Ne5 {[%clk 0:01:07]} 27. Bxe5 {[%clk 0:00:54]}  Rxe5 {[%clk 0:00:57]} 28. a4 {[%clk 0:00:51]}  Ng4 {[%clk 0:00:46]} 29. Bh3 {[%clk 0:00:45]}  h5 {[%clk 0:00:45]} 30. Rcb1 {[%clk 0:00:31]}  Rc5 {[%clk 0:00:37]} 31. b4 {[%clk 0:00:30]}  Rc3 {[%clk 0:00:34]} 32. Bxg4 {[%clk 0:00:24]}  hxg4 {[%clk 0:00:34]} 33. a5 {[%clk 0:00:24]}  Rbc8 {[%clk 0:00:34]} 34. Rf1 {[%clk 0:00:12]}  Rc2 {[%clk 0:00:33]} 35. Qa6 {[%clk 0:00:12]}  Rb2 {[%clk 0:00:28]} 36. Qxd6 {[%clk 0:00:11]}  g5 {[%clk 0:00:23]} 37. Rab1 {[%clk 0:00:08]}  Rxb1 {[%clk 0:00:18]} 38. Rxb1 {[%clk 0:00:08]}  Rc2 {[%clk 0:00:18]} 39. Rf1 {[%clk 0:00:08]}  Ra2 {[%clk 0:00:16]} 40. a6 {[%clk 0:00:07]}  Qb5 {[%clk 0:00:13]} 41. a7 {[%clk 0:00:04]}  Rxa7 {[%clk 0:00:12]} 42. Qc5 {[%clk 0:00:04]}  Qxc5 {[%clk 0:00:12]} 43. bxc5 {[%clk 0:00:04]}  Kf8 {[%clk 0:00:10]} 44. Rc1 {[%clk 0:00:04]}  Ke7 {[%clk 0:00:10]} 45. Kg2 {[%clk 0:00:04]}  Ke6 {[%clk 0:00:10]} 46. c6 {[%clk 0:00:05]}  Rc7 {[%clk 0:00:09]} 47. h3 {[%clk 0:00:05]}  gxh3+ {[%clk 0:00:08]} 48. Kxh3 {[%clk 0:00:06]}  f5 {[%clk 0:00:09]} 49. g4 {[%clk 0:00:06]}  f4 {[%clk 0:00:09]} 50. exf4 {[%clk 0:00:06]}  gxf4 {[%clk 0:00:09]} 51. Kh4 {[%clk 0:00:06]}  Ke5 {[%clk 0:00:09]} 52. Kg5 {[%clk 0:00:06]}  e3 {[%clk 0:00:09]} 53. fxe3 {[%clk 0:00:06]}  fxe3 {[%clk 0:00:09]} 54. Kh6 {[%clk 0:00:07]}  Kf4 {[%clk 0:00:05]} 55. g5 {[%clk 0:00:07]}  e2 {[%clk 0:00:06]} 56. g6 {[%clk 0:00:08]}  Rxc6 {[%clk 0:00:06]} 57. Rxc6 {[%clk 0:00:05]}  e1=Q {[%clk 0:00:05]} 58. Rf6+ {[%clk 0:00:06]}  Ke5 {[%clk 0:00:05]} 59. Rf7 {[%clk 0:00:06]}  Qh4+ {[%clk 0:00:05]} 60. Kg7 {[%clk 0:00:06]}  Qd4 {[%clk 0:00:04]} 61. Kg8 {[%clk 0:00:05]}  Qd8+ {[%clk 0:00:03]} 62. Rf8 {[%clk 0:00:06]}  Qd5+ {[%clk 0:00:02]} 63. Kh8 {[%clk 0:00:05]} 1-0


[Site "https://www.chess.com"]

[Event "Titled Tuesday Blitz March 15 Early 2022"]
[White "Coto Mederos, Michel"]
[Black "Chernomordik, Pavel"]
[WhiteFideId "3508528"]
[BlackFideId "2804530"]
[WhiteElo "2563"]
[BlackElo "2462"]
[Result "1-0"]
[Round "09"]
[TimeControl "180+1"]
[Date "2022.03.15"]
[WhiteClock "0:00:05"]
[BlackClock "0:00:01"]

1. d4 {[%clk 0:02:53]}  g6 {[%clk 0:03:00]} 2. c4 {[%clk 0:02:47]}  Bg7 {[%clk 0:03:00]} 3. Nc3 {[%clk 0:02:48]}  d6 {[%clk 0:03:00]} 4. e4 {[%clk 0:02:47]}  c6 {[%clk 0:02:59]} 5. Be3 {[%clk 0:02:42]}  a6 {[%clk 0:02:59]} 6. Bd3 {[%clk 0:02:39]}  b5 {[%clk 0:02:58]} 7. Nf3 {[%clk 0:02:25]}  Nf6 {[%clk 0:02:57]} 8. O-O {[%clk 0:02:24]}  bxc4 {[%clk 0:02:53]} 9. Bxc4 {[%clk 0:02:23]}  d5 {[%clk 0:02:52]} 10. exd5 {[%clk 0:02:16]}  cxd5 {[%clk 0:02:51]} 11. Bd3 {[%clk 0:02:16]}  O-O {[%clk 0:02:44]} 12. Ne5 {[%clk 0:02:12]}  Qb6 {[%clk 0:02:39]} 13. Qd2 {[%clk 0:02:03]}  e6 {[%clk 0:02:27]} 14. Na4 {[%clk 0:01:54]}  Qd6 {[%clk 0:02:24]} 15. Nc5 {[%clk 0:01:31]}  Nc6 {[%clk 0:02:10]} 16. f4 {[%clk 0:01:20]}  Rb8 {[%clk 0:01:56]} 17. Rac1 {[%clk 0:01:10]}  Ne7 {[%clk 0:01:40]} 18. b3 {[%clk 0:01:03]}  Nf5 {[%clk 0:01:37]} 19. Bf2 {[%clk 0:00:58]}  h5 {[%clk 0:01:28]} 20. Qa5 {[%clk 0:00:38]}  Ng4 {[%clk 0:01:19]} 21. Nxa6 {[%clk 0:00:22]}  Nxf2 {[%clk 0:01:09]} 22. Rxf2 {[%clk 0:00:16]}  Ra8 {[%clk 0:01:05]} 23. Rc6 {[%clk 0:00:15]}  Qe7 {[%clk 0:00:59]} 24. Qc3 {[%clk 0:00:13]}  Bxa6 {[%clk 0:00:45]} 25. Rxa6 {[%clk 0:00:11]}  Rxa6 {[%clk 0:00:43]} 26. Bxa6 {[%clk 0:00:12]}  Qa7 {[%clk 0:00:42]} 27. Bd3 {[%clk 0:00:09]}  Nxd4 {[%clk 0:00:40]} 28. Kf1 {[%clk 0:00:08]}  Nf5 {[%clk 0:00:26]} 29. Bxf5 {[%clk 0:00:07]}  gxf5 {[%clk 0:00:21]} 30. Rc2 {[%clk 0:00:07]}  d4 {[%clk 0:00:13]} 31. Qd3 {[%clk 0:00:05]}  Qb6 {[%clk 0:00:04]} 32. a4 {[%clk 0:00:05]}  Qd6 {[%clk 0:00:01]} 33. a5 {[%clk 0:00:05]}  Qb4 {[%clk 0:00:01]} 34. a6 {[%clk 0:00:05]} 1-0


[Site "https://www.chess.com"]

[Event "Titled Tuesday Blitz March 15 Early 2022"]
[White "Devaev, Alexander"]
[Black "Samaganova, Aleksandra"]
[WhiteFideId "4169395"]
[BlackFideId "13800221"]
[WhiteElo "2185"]
[BlackElo "1859"]
[Result "1-0"]
[Round "09"]
[TimeControl "180+1"]
[Date "2022.03.15"]
[WhiteClock "0:00:20"]
[BlackClock "0:00:01"]

1. d4 {[%clk 0:02:51]}  Nf6 {[%clk 0:02:59]} 2. c4 {[%clk 0:02:49]}  e6 {[%clk 0:02:56]} 3. Nc3 {[%clk 0:02:49]}  Bb4 {[%clk 0:02:52]} 4. e3 {[%clk 0:02:43]}  O-O {[%clk 0:02:46]} 5. Ne2 {[%clk 0:02:42]}  b6 {[%clk 0:02:42]} 6. a3 {[%clk 0:02:41]}  Be7 {[%clk 0:02:41]} 7. Ng3 {[%clk 0:02:39]}  Bb7 {[%clk 0:02:37]} 8. e4 {[%clk 0:02:39]}  d6 {[%clk 0:02:35]} 9. f4 {[%clk 0:02:32]}  c5 {[%clk 0:02:31]} 10. d5 {[%clk 0:02:29]}  Nbd7 {[%clk 0:02:22]} 11. Bd3 {[%clk 0:02:24]}  a6 {[%clk 0:02:02]} 12. O-O {[%clk 0:02:21]}  exd5 {[%clk 0:01:53]} 13. exd5 {[%clk 0:02:17]}  b5 {[%clk 0:01:49]} 14. b3 {[%clk 0:01:57]}  Re8 {[%clk 0:01:14]} 15. Kh1 {[%clk 0:01:46]}  Bf8 {[%clk 0:01:10]} 16. Qc2 {[%clk 0:01:44]}  g6 {[%clk 0:01:00]} 17. Bb2 {[%clk 0:01:24]}  Bg7 {[%clk 0:00:59]} 18. Rae1 {[%clk 0:01:23]}  Rxe1 {[%clk 0:00:51]} 19. Rxe1 {[%clk 0:01:23]}  Qf8 {[%clk 0:00:51]} 20. cxb5 {[%clk 0:00:57]}  axb5 {[%clk 0:00:34]} 21. Bxb5 {[%clk 0:00:57]}  Nb6 {[%clk 0:00:31]} 22. Bc6 {[%clk 0:00:57]}  Rb8 {[%clk 0:00:23]} 23. Rd1 {[%clk 0:00:44]}  Qe7 {[%clk 0:00:20]} 24. h3 {[%clk 0:00:41]}  Bh6 {[%clk 0:00:16]} 25. f5 {[%clk 0:00:35]}  Bf4 {[%clk 0:00:09]} 26. Nge4 {[%clk 0:00:30]}  Be5 {[%clk 0:00:09]} 27. Nxf6+ {[%clk 0:00:29]}  Qxf6 {[%clk 0:00:09]} 28. Ne4 {[%clk 0:00:29]}  Qe7 {[%clk 0:00:06]} 29. f6 {[%clk 0:00:28]}  Qd8 {[%clk 0:00:05]} 30. Bxe5 {[%clk 0:00:27]}  dxe5 {[%clk 0:00:05]} 31. Bxb7 {[%clk 0:00:26]}  Rxb7 {[%clk 0:00:05]} 32. d6 {[%clk 0:00:26]}  Nd7 {[%clk 0:00:04]} 33. Nxc5 {[%clk 0:00:19]}  Nxc5 {[%clk 0:00:02]} 34. Qxc5 {[%clk 0:00:19]}  Qxf6 {[%clk 0:00:02]} 35. Qc8+ {[%clk 0:00:19]}  Kg7 {[%clk 0:00:01]} 36. Qxb7 {[%clk 0:00:20]} 1-0


[Site "https://www.chess.com"]